[Event "39th OBSenEM 2023"]
[Site "Berlin"]
[Date "2023.01.29"]
[Round "6.1"]
[White "Brustkern, Juergen"]
[Black "Hess, Christian"]
[Result "0-1"]
[ECO "A03"]
[WhiteElo "2182"]
[BlackElo "2215"]
[Annotator "TA"]
[PlyCount "90"]
[EventDate "2023.01.24"]
[EventType "swiss"]
[EventCountry "GER"]
[SourceTitle "playchess.com"]
[Source "ChessBase"]
[SourceQuality "1"]
[TimeControl "40/5400+30:1800+30"]

{[%evp 11,90,-25,-20,-33,-13,-25,0,-12,18,11,0,-6,-12,-16,-12,-62,-74,-74,-70,-88,-88,-95,-90,-112,-110,-85,-109,-93,-50,-111,-86,-120,-89,-146,-137,-187,-186,-184,-179,-293,-306,-310,-291,-279,-227,-227,-240,-225,-206,-195,-203,-184,-145,-151,-145,-212,-207,-229,-230,-218,-176,-185,-179,-211,-224,-190,-190,-222,-217,-218,-215,-301,-296,-435,-413,-520,-487,-501,-464,-635,-602]} 1. f4 {[%emt 0:00:09]} Nf6 {[%emt 0:00:28]} 2. Nf3 {[%emt 0:00:07]} g6 {[%emt 0:00:20]} 3. d3 {[%emt 0:00:34]} d5 {[%emt 0:05:32]} 4. e3 {[%emt 0:00:18]} Bg7 {[%emt 0:00:21]} 5. Be2 {[%emt 0:00:08]} O-O {[%emt 0:02:07]} 6. O-O {[%emt 0:00:07]} b6 {[%emt 0:02:03]} 7. a4 {[%emt 0:01:26] A03: Bird's Opening with 1...d5.} a5 {[%emt 0:01:36] [#]} 8. Nc3 $146 {[%emt 0:06:08][%cal Bb1c3,Bc3b5,Bb5d4,Bd4c6,Bc6e5][%mdl 32]} ({Predecessor:} 8. Qe1 Bb7 9. Nc3 c5 10. Nb5 Na6 11. Bd2 Nc7 12. Nxc7 Qxc7 13. Qh4 Ne8 14. e4 Nd6 {½-½ Bohn,T (2350)-Bonnmann,R (2266) BL2-West 1011 2010 (8.7)}) 8... Ba6 {[%emt 0:07:43]} 9. Ne5 {[%emt 0:10:31] The position is equal.} Nbd7 {[%emt 0:09:54][%cal Bb8d7,Bd7c5,Bc5a4][%mdl 32]} 10. Nc6 {[%emt 0:22:02]} Qe8 {[%emt 0:00:18]} 11. Nb5 {[%emt 0:00:04]} Nc5 {[%emt 0:07:38]} 12. Ne5 {[%emt 0:03:00]} Qc8 {[%emt 0:05:19][%cal Oc5a4]} 13. Qe1 {[%emt 0:03:34] [#]} (13. b3 $11) 13... Nxa4 $1 $15 {[%emt 0:12:01][%mdl 64] Remove Defender} 14. Nd4 {[%emt 0:04:49]} (14. d4 c6) 14... Nc5 {[%emt 0:03:31]} 15. Qh4 {[%emt 0:01:51]} Ncd7 {[%emt 0:02:55]} 16. Ndc6 {[%emt 0:02:46]} Qe8 {[%emt 0:00:31]} 17. Rf3 {[%emt 0:05:34]} Nxe5 {[%emt 0:03:48]} 18. Nxe5 {[%emt 0:00:24]} Bc8 {[%emt 0:04:39]} 19. g4 {[%emt 0:01:37]} Nd7 {[%emt 0:07:20]} 20. Rh3 {[%emt 0:04:24]} (20. Nc6 $15 Nf6 {[%mdl 64] Discovered Attack} 21. Ne5) 20... h6 {[%emt 0:01:04]} 21. Bf3 {[%emt 0:10:59][%cal Oe5g6] [#] Nxg6! would be deadly.} e6 {[%emt 0:03:37]} 22. e4 {[%emt 0:03:39]} (22. Nxd7 $142 Qxd7 23. Bd2) 22... g5 $1 $17 {[%emt 0:03:49]} 23. Qg3 {[%emt 0:00:31]} (23. Qe1 $17 {was necessary.} Nxe5 24. fxe5) 23... Nxe5 $19 {[%emt 0:00:25]} 24. fxe5 {[%emt 0:00:09]} Bb7 {[%emt 0:00:36]} 25. Bd2 {[%emt 0:06:23]} (25. Qg2 $142) 25... dxe4 {[%emt 0:01:28]} 26. dxe4 {[%emt 0:00:29]} Qb5 {[%emt 0:01:02]} 27. Bc3 {[%emt 0:00:18]} Qc5+ {[%emt 0:00:58]} 28. Qf2 {[%emt 0:01:30]} Qxf2+ {[%emt 0:02:48]} (28... Bxe5 $2 29. Qxc5 (29. Rxh6 $2 Qxf2+ 30. Kxf2 Kg7 $19) 29... bxc5 30. Bxe5 $18) 29. Kxf2 {[%emt 0:00:08]} b5 {[%emt 0:03:53]} 30. Rxa5 {[%emt 0:03:11]} Rxa5 {[%emt 0:00:31]} 31. Bxa5 {[%emt 0:00:40]} Bxe5 {[%emt 0:00:33]} 32. Rxh6 {[%emt 0:01:12]} Ra8 {[%emt 0:03:16]} 33. b4 {[%emt 0:01:29]} (33. Bc3 $17 Bxc3 34. bxc3) 33... Rd8 {[%emt 0:00:32] White must now prevent ...Rd2+.} 34. Rh5 {[%emt 0:02:46]} f6 {[%emt 0:01:07] ...Rd2+ is the strong threat.} 35. h4 {[%emt 0:01:18]} Bf4 {[%emt 0:02:41]} 36. hxg5 {[%emt 0:00:47]} fxg5 {[%emt 0:00:02]} 37. Rh6 {[%emt 0:01:13]} Rd2+ {[%emt 0:01:15]} 38. Ke1 {[%emt 0:00:48][%cal Oa5c7]} Rxc2 {[%emt 0:00:29]} 39. Rxe6 {[%emt 0:00:13]} Kf7 {[%emt 0:00:22] Inhibits Re7+.} 40. Rh6 {[%emt 0:00:25]} Rc4 {[%emt 0:00:47]} 41. Kf1 {[%emt 0:32:10]} Bxe4 {[%emt 0:02:09]} 42. Bxe4 {[%emt 0:00:00]} (42. Be2 {was called for.} Rc1+ 43. Kf2) 42... Rxe4 {[%emt 0:00:06]} 43. Kf2 {[%emt 0:00:00]} Rc4 {[%emt 0:05:41] Black is clearly winning.} 44. Ke2 {[%emt 0:00:00]} Bd6 {[%emt 0:02:39]} 45. Kf3 {[%emt 0:00:00]} Rf4+ {[%emt 0:00:31] Weighted Error Value: White=0.33/Black=0.11 (very precise)} (45... Bxb4 $2 {is the wrong capture.} 46. Bxb4 Rf4+ 47. Kg3 Rxb4 48. Rh7+ Ke6 49. Rxc7 $19) 0-1

[Event "39th OBSenEM 2023"]
[Site "Berlin"]
[Date "2023.01.29"]
[Round "6.2"]
[White "Koetz, Andreas"]
[Black "Postler, Reinhard"]
[Result "0-1"]
[ECO "D13"]
[WhiteElo "1925"]
[BlackElo "2202"]
[Annotator "TA"]
[PlyCount "108"]
[EventDate "2023.01.24"]
[EventType "swiss"]
[EventCountry "GER"]
[SourceTitle "playchess.com"]
[Source "ChessBase"]
[SourceQuality "1"]
[TimeControl "40/5400+30:1800+30"]

{[%evp 16,108,0,0,0,0,10,0,0,0,0,0,-10,0,-2,-35,-29,-33,-42,-33,-39,-49,-40,-79,-56,-72,-64,-99,-99,-97,-98,-118,-118,-118,-118,-118,-119,-118,-118,-114,-102,-210,-125,-123,-120,-129,-128,-130,-128,-128,-128,-128,-118,-120,-108,-114,-95,-84,-77,-143,-146,-170,-164,-155,-166,-188,-132,-167,-176,-175,-173,-171,-175,-188,-185,-237,-231,-237,-233,-235,-214,-206,-197,-287,-287,-317,-279,-276,-283,-275,-222,-277,-190,-382,-374]} 1. c4 {[%emt 0:00:03]} Nf6 {[%emt 0:00:21]} 2. Nf3 {[%emt 0:00:11]} c6 {[%emt 0:00:02]} 3. g3 {[%emt 0:00:13]} d5 {[%emt 0:00:07]} 4. cxd5 {[%emt 0:01:37]} cxd5 {[%emt 0:00:02]} 5. Bg2 {[%emt 0:00:14]} Nc6 {[%emt 0:02:27]} 6. d4 {[%emt 0:01:50]} e6 {[%emt 0:01:02]} 7. O-O {[%emt 0:00:11]} Bd6 {[%emt 0:00:51]} 8. Nc3 {[%emt 0:00:21]} O-O {[%emt 0:00:02]} 9. Bg5 {[%emt 0:00:33]} h6 {[%emt 0:00:40] D13: Slav Defence: Exchange variation without ...Bf5.} 10. Bxf6 {[%emt 0:00:24]} Qxf6 {[%emt 0:00:02]} 11. e3 {[%emt 0:00:11]} Bd7 {[%emt 0:01:19] The position is equal.} 12. Rc1 {[%emt 0:00:51] [#]} Rac8 $146 {[%emt 0:01:32]} ({Predecessor:} 12... Rfc8 13. Ne1 Qe7 14. Nd3 Nb4 15. a3 Nxd3 16. Qxd3 a6 17. e4 dxe4 18. Bxe4 Rab8 {0-1 Buker,M (1967)-Valgmae,T (2270) Titled Tuesday intern op 21st Dec blitz 2021 (3)}) 13. e4 {[%emt 0:01:21]} dxe4 {[%emt 0:01:51]} 14. Nxe4 {[%emt 0:00:10]} Qe7 {[%emt 0:00:00]} 15. Nxd6 {[%emt 0:00:40]} Qxd6 {[%emt 0:00:02]} 16. Qd2 {[%emt 0:00:44]} Rfd8 {[%emt 0:08:07]} 17. Rfd1 {[%emt 0:01:09]} Be8 {[%emt 0:00:10]} 18. a3 {[%emt 0:02:50]} b6 {[%emt 0:01:44]} 19. Ne1 {[%emt 0:01:59]} Ne7 {[%emt 0:02:22]} (19... e5 $5 {[%cal Rc6d4]} 20. f4 exd4 $15) 20. Rxc8 {[%emt 0:00:18]} Rxc8 {[%emt 0:00:17]} 21. Qe2 {[%emt 0:03:05]} Ba4 $1 {[%emt 0:06:20]} 22. Rd2 {[%emt 0:01:11]} Rc1 {[%emt 0:04:49]} 23. Be4 {[%emt 0:00:23] [#]} Bb5 $1 {[%emt 0:01:42][%mdl 576] Deflection} 24. Bd3 {[%emt 0:01:21]} Bc6 {[%emt 0:14:24] Black is more active.} 25. Be4 {[%emt 0:01:16]} Bxe4 {[%emt 0:02:35]} 26. Qxe4 {[%emt 0:00:07]} Qd5 {[%emt 0:00:04] Repels Qa8+} 27. Re2 {[%emt 0:01:14]} Rd1 {[%emt 0:01:53]} (27... Qxe4 {simplifies} 28. Rxe4 Rb1 29. Re2 Nc6) 28. Kg2 {[%emt 0:02:19] [#]} (28. Qxd5 $17 {was called for.} Nxd5 29. Kf1) 28... Rxd4 {[%emt 0:01:08]} (28... Qxe4+ $1 $19 29. Rxe4 Rd2) 29. Qxd5 $17 {[%emt 0:00:10]} Nxd5 $19 {[%emt 0:02:04][%mdl 4096] Endgame KRN-KRN} 30. Nf3 {[%emt 0:00:30]} Rc4 {[%emt 0:00:16]} 31. Ne5 {[%emt 0:00:58]} Rc7 {[%emt 0:01:09]} 32. f4 {[%emt 0:02:28]} Kf8 {[%emt 0:06:43]} 33. Kf3 {[%emt 0:00:42]} f6 {[%emt 0:04:01]} 34. Ng6+ {[%emt 0:04:27][%mdl 64] Discovered Attack} Kf7 {[%emt 0:00:39]} 35. Nh8+ {[%emt 0:00:06]} Kg8 {[%emt 0:14:08]} 36. Ng6 {[%emt 0:00:08]} Ne7 {[%emt 0:00:36]} 37. Nh4 {[%emt 0:03:33]} (37. Nxe7+ $142 Rxe7 38. Rc2) 37... Kf7 {[%emt 0:00:08]} 38. Kf2 {[%emt 0:02:31]} g5 {[%emt 0:01:37]} 39. Ng2 {[%emt 0:04:01]} Nf5 {[%emt 0:02:26]} 40. Rd2 {[%emt 0:01:46]} Ke7 {[%emt 0:07:23]} ({Black should try} 40... g4 $19 41. Ne3 Nxe3 42. Kxe3 Kg6) 41. g4 {[%emt 0:30:53]} Nd6 {[%emt 0:30:16] ...Ne4+ is the strong threat.} 42. Re2 {[%emt 0:00:15] Repels Ne4+} Kd7 {[%emt 0:04:58]} 43. h4 {[%emt 0:00:24]} Rc4 {[%emt 0:01:14]} 44. Kf3 {[%emt 0:00:20]} Rd4 {[%emt 0:00:35]} 45. hxg5 {[%emt 0:01:10]} (45. b3 {keeps fighting.}) 45... hxg5 {[%emt 0:00:21]} ({Not} 45... fxg5 46. fxg5 hxg5 47. Re5) 46. fxg5 {[%emt 0:00:07]} fxg5 {[%emt 0:00:09]} 47. Re5 {[%emt 0:02:19]} Rd3+ {[%emt 0:02:49]} 48. Ke2 {[%emt 0:02:11] [#]} Rd5 {[%emt 0:02:13]} 49. Re3 {[%emt 0:00:12]} (49. Rxd5 $142 exd5 50. b3) 49... Nc4 {[%emt 0:01:10][%csl LRb2,LRe3]} 50. Rh3 {[%emt 0:00:34]} a5 {[%emt 0:01:17]} (50... Nxb2 $2 {too greedy.} 51. Rh7+ Kd6 52. Rxa7 $19) 51. b4 {[%emt 0:01:29]} axb4 {[%emt 0:00:53]} 52. axb4 {[%emt 0:00:06]} Kc6 {[%emt 0:00:36]} 53. Rh6 {[%emt 0:00:37]} Re5+ {[%emt 0:00:30]} 54. Kd3 $2 {[%emt 0:02:31]} (54. Kf2) 54... Kb5 {[%emt 0:03:24] Weighted Error Value: White=0.21 (precise) /Black=0.11 (very precise)} 0-1

[Event "39th OBSenEM 2023"]
[Site "Berlin"]
[Date "2023.01.29"]
[Round "6.3"]
[White "Koehler, Gerhard"]
[Black "Braeunlin, Herbert"]
[Result "1-0"]
[ECO "A36"]
[WhiteElo "2241"]
[BlackElo "2077"]
[Annotator "TA"]
[PlyCount "65"]
[EventDate "2023.01.24"]
[EventType "swiss"]
[EventCountry "GER"]
[SourceTitle "playchess.com"]
[Source "ChessBase"]
[SourceQuality "1"]
[TimeControl "40/5400+30:1800+30"]

{[%evp 10,64,18,10,32,-10,31,27,53,48,71,85,105,111,208,185,296,308,291,295,262,281,245,193,244,228,288,290,379,370,841,840,845,852,830,826,826,818,770,552,801,618,1086,1063,1122,1112,1713,1720,1686,1612,29980,29981,29997,29998,29998,29999,29999]} 1. c4 {[%emt 0:00:30]} Nf6 {[%emt 0:00:06]} 2. g3 {[%emt 0:00:00]} c5 {[%emt 0:01:37]} 3. Bg2 {[%emt 0:00:46]} g6 {[%emt 0:01:53]} 4. Nc3 {[%emt 0:00:16]} Nc6 {[%emt 0:00:15]} 5. a3 {[%emt 0:00:22]} Bg7 {[%emt 0:00:16]} 6. Rb1 {[%emt 0:00:13]} h5 {[%emt 0:06:47] 6...0-0 is becoming the main line. A36: Symmetrical English vs ...g6: 4 Bg2 Bg7.} 7. Nf3 {[%emt 0:07:52] [#]} d6 $146 {[%emt 0:07:16]} ({Predecessor:} 7... a5 8. d4 d6 9. d5 Nb8 10. e4 Ng4 11. Ng5 Bd4 12. O-O h4 13. Nb5 hxg3 14. hxg3 {1-0 Webster,A (2417)-Briggs,P (2200) BCF-ch 87th Millfield 2000 (3)}) 8. b4 {[%emt 0:03:27]} cxb4 {[%emt 0:04:48] White has an edge.} 9. axb4 {[%emt 0:00:26]} Bf5 {[%emt 0:00:18]} 10. d3 {[%emt 0:00:45]} Ng4 {[%emt 0:11:08]} 11. Bd2 {[%emt 0:04:02]} h4 {[%emt 0:05:10]} 12. h3 {[%emt 0:25:51]} ({Not} 12. gxh4 a6 $14) 12... hxg3 {[%emt 0:17:37]} (12... Nge5 $142) 13. hxg4 $18 {[%emt 0:00:42]} Rxh1+ {[%emt 0:00:04]} 14. Bxh1 {[%emt 0:00:20]} gxf2+ {[%emt 0:00:38]} 15. Kxf2 {[%emt 0:00:53]} Bxg4 {[%emt 0:00:11]} 16. Ne4 {[%emt 0:08:02]} Qd7 {[%emt 0:12:43]} (16... d5 {was worth a try.}) 17. Qa4 {[%emt 0:05:12]} f5 {[%emt 0:13:02]} 18. Neg5 {[%emt 0:02:53]} e5 {[%emt 0:00:58]} 19. Bg2 {[%emt 0:09:38]} O-O-O $2 {[%emt 0:05:35]} (19... a6 20. b5 Nd8) 20. b5 {[%emt 0:01:38][%mdl 64] [#] Deflection} Nb8 {[%emt 0:00:01]} 21. Qxa7 {[%emt 0:08:32]} e4 {[%emt 0:01:06]} 22. Nd4 {[%emt 0:00:54]} Re8 {[%emt 0:06:49]} 23. dxe4 {[%emt 0:09:38]} Bf6 {[%emt 0:00:15]} 24. Be3 {[%emt 0:03:37][%cal Bd2e3,Be3f4,Bf4d6][%mdl 32]} Qe7 {[%emt 0:01:30]} 25. Nge6 {[%emt 0:00:44]} f4 {[%emt 0:01:01]} 26. Nxf4 {[%emt 0:00:35] [#] Nd5 is the strong threat.} Be5 {[%emt 0:00:00]} 27. Ke1 {[%emt 0:01:00] Strongly threatening Nd5.} Qh4+ {[%emt 0:01:33]} 28. Kd2 {[%emt 0:01:42]} Bxf4 {[%emt 0:01:02]} 29. Bxf4 {[%emt 0:00:19]} Qf2 {[%emt 0:00:02]} 30. Bxd6 {[%emt 0:00:47] White mates.} Rd8 {[%emt 0:01:04]} 31. Qxb8+ {[%emt 0:00:20]} Kd7 {[%emt 0:00:00]} 32. Qc7+ {[%emt 0:00:13]} Ke8 {[%emt 0:00:04]} 33. Qe7# {[%emt 0:00:13] Black did not feel at home in the position after the opening.   Weighted Error Value: White=0.50/Black=0.79} 1-0

[Event "39th OBSenEM 2023"]
[Site "Berlin"]
[Date "2023.01.29"]
[Round "6.4"]
[White "Jandke, Manfred"]
[Black "Niehaus, Frank"]
[Result "1/2-1/2"]
[ECO "E60"]
[WhiteElo "2061"]
[BlackElo "2089"]
[Annotator "TA"]
[PlyCount "47"]
[EventDate "2023.01.24"]
[EventType "swiss"]
[EventCountry "GER"]
[SourceTitle "playchess.com"]
[Source "ChessBase"]
[SourceQuality "1"]
[TimeControl "40/5400+30:1800+30"]

{[%evp 15,47,-36,-35,-33,-16,-30,0,0,0,-22,0,0,35,0,11,13,30,29,39,-16,-8,-90,-86,-95,-12,-3,8,6,12,0,-21,-40,62,-72]} 1. c4 {[%emt 0:00:07]} Nf6 {[%emt 0:00:15]} 2. g3 {[%emt 0:00:09]} g6 {[%emt 0:00:12]} 3. Nf3 {[%emt 0:00:14]} Bg7 {[%emt 0:00:09]} 4. Bg2 {[%emt 0:00:08]} d6 {[%emt 0:00:07]} 5. d4 {[%emt 0:00:20]} O-O {[%emt 0:00:08]} 6. O-O {[%emt 0:00:07]} Nc6 {[%emt 0:00:24]} 7. b3 {[%emt 0:01:44]} e5 $1 {[%emt 0:01:31][%cal Be7e5,Be5e4][%mdl 32] The main line 7...e5 scores better than 7...a6.} 8. Bb2 {[%emt 0:00:57]} e4 {[%emt 0:02:43]} 9. Ne1 {[%emt 0:02:02] E60: King's Indian: Unusual lines and Fianchetto Variation without Nc3.} Re8 {[%emt 0:03:52]} 10. Nc2 {[%emt 0:02:33]} h5 {[%emt 0:04:36]} 11. Nc3 {[%emt 0:06:23] The position is equal.} h4 {[%emt 0:03:18] [#]} 12. Ne3 $146 {[%emt 0:08:27]} ({Predecessor:} 12. b4 Bg4 13. b5 Ne7 14. Nxe4 Nxe4 15. Bxe4 Nf5 16. Bf3 Qg5 17. Qc1 Qh5 18. Qf4 hxg3 19. hxg3 Bxf3 20. Qxf3 Rxe2 {½-½ Postny,E (2552)-Jobava,B (2582) Titled Tuesday intern op 02nd Nov blitz 2021 (9)}) 12... hxg3 {[%emt 0:00:17]} (12... Nh5 {keeps more tension.} 13. Nc2 e3 14. gxh4 Nf4) 13. hxg3 {[%emt 0:01:08]} Bh6 {[%emt 0:07:27]} 14. Ncd5 {[%emt 0:08:38]} Nxd5 {[%emt 0:10:55]} 15. Nxd5 {[%emt 0:01:02]} ({But not} 15. cxd5 Ne7 16. f4 (16. Bxe4 Bxe3 17. fxe3 Nf5 $17) 16... exf3 17. Rxf3 Bf5 18. Nxf5 Nxf5 $17) 15... Bf5 {[%emt 0:02:45]} 16. e3 {[%emt 0:02:54]} Nb8 {[%emt 0:02:00]} 17. Qc2 {[%emt 0:07:15]} (17. f3 $14 Nd7 18. fxe4 Bxe4 19. Qg4 (19. Bxe4 Rxe4 20. Qf3 f5 $11) 19... Bxg2 20. Kxg2) 17... Nd7 {[%emt 0:01:53]} 18. b4 {[%emt 0:07:09]} (18. Qe2 $11 {keeps the balance.}) 18... c6 $17 {[%emt 0:01:50]} 19. Nc3 {[%emt 0:01:37]} Nf6 {[%emt 0:01:51]} ({Better is} 19... Qg5 $17) 20. d5 $11 {[%emt 0:01:50]} Qe7 {[%emt 0:05:11]} 21. dxc6 {[%emt 0:01:49]} bxc6 {[%emt 0:00:07]} 22. Rad1 {[%emt 0:01:03]} Ng4 {[%emt 0:02:28]} 23. Ne2 {[%emt 0:04:27]} Kh7 {[%emt 0:06:53]} (23... Qg5 $15 24. Qc3 (24. Rxd6 $2 {loses.} Qh5 $19) 24... Ne5) 24. Nf4 {[%emt 0:13:29] Weighted Error Value: White=0.21 (precise) /Black=0.26 (precise)} (24. Nd4 $1 $14) 1/2-1/2

[Event "39th OBSenEM 2023"]
[Site "Berlin"]
[Date "2023.01.30"]
[Round "7.1"]
[White "Hess, Christian"]
[Black "Postler, Reinhard"]
[Result "1/2-1/2"]
[ECO "E08"]
[WhiteElo "2215"]
[BlackElo "2202"]
[Annotator "TA"]
[PlyCount "30"]
[EventDate "2023.01.24"]
[EventType "swiss"]
[EventCountry "GER"]
[SourceTitle "playchess.com"]
[Source "ChessBase"]
[SourceQuality "1"]
[TimeControl "40/5400+30:1800+30"]

{[%evp 20,30,17,17,14,20,14,22,29,20,35,10,28]} 1. c4 {[%emt 0:01:03]} e6 {[%emt 0:00:16]} 2. g3 {[%emt 0:00:27]} d5 {[%emt 0:00:03]} 3. Bg2 {[%emt 0:00:08]} Nf6 {[%emt 0:00:24]} 4. Nf3 {[%emt 0:00:16]} Be7 {[%emt 0:00:24]} 5. O-O {[%emt 0:00:14]} O-O {[%emt 0:00:24]} 6. d4 {[%emt 0:00:15]} c6 {[%emt 0:00:14]} 7. Nc3 {[%emt 0:01:07]} Nbd7 {[%emt 0:01:22]} 8. b3 {[%emt 0:02:16]} b6 {[%emt 0:00:29]} 9. Bb2 {[%emt 0:02:07]} Bb7 {[%emt 0:00:21] 9...Ba6 is the fancy move.} 10. Qc2 {[%emt 0:02:46]} Qc7 {[%emt 0:05:24]} 11. Rad1 {[%emt 0:05:04]} Rfd8 {[%emt 0:04:42] E08: Closed Catalan: Main Line: 7 Qc2.} 12. e4 {[%emt 0:19:26]} Nxe4 {[%emt 0:10:45]} 13. Nxe4 {[%emt 0:00:48]} dxe4 {[%emt 0:00:07]} 14. Qxe4 {[%emt 0:00:25] [#]} c5 $146 {[%emt 0:00:48]} ({Predecessor:} 14... Nf6 15. Qe2 a5 16. a3 c5 17. Rfe1 cxd4 18. Nxd4 Bxg2 19. Kxg2 Rd7 20. Qf3 Rad8 {1-0 Navara,D (2710)-Houska,J (2416) Gibraltar Masters 11th 2013 (2)}) 15. Qe2 {[%emt 0:02:08]} cxd4 {[%emt 0:00:30] Not much happened in this game.   Weighted Error Value: White=0.10 (very precise) /Black=0.04 (flawless)} 1/2-1/2

[Event "39th OBSenEM 2023"]
[Site "Berlin"]
[Date "2023.01.30"]
[Round "7.3"]
[White "Niehaus, Frank"]
[Black "Brustkern, Juergen"]
[Result "1/2-1/2"]
[ECO "B32"]
[WhiteElo "2089"]
[BlackElo "2182"]
[Annotator "TA"]
[PlyCount "52"]
[EventDate "2023.01.24"]
[EventType "swiss"]
[EventCountry "GER"]
[SourceTitle "playchess.com"]
[Source "ChessBase"]
[SourceQuality "1"]
[TimeControl "40/5400+30:1800+30"]

{[%evp 14,52,27,25,36,32,15,31,22,22,12,23,31,25,28,31,67,62,87,89,131,123,125,114,109,123,142,150,211,57,69,28,29,33,33,0,37,0,17,41,18]} 1. e4 {[%emt 0:00:14]} c5 {[%emt 0:01:02]} 2. Nf3 {[%emt 0:00:35][%cal Bg1f3,Bf3d4,Bd4b5,Bb5a3,Ba3c4][%mdl 32]} Nc6 {[%emt 0:00:12]} 3. d4 {[%emt 0:00:25]} cxd4 {[%emt 0:00:08]} 4. Nxd4 {[%emt 0:00:09]} e5 {[%emt 0:00:05]} 5. Nb5 {[%emt 0:00:23]} d6 {[%emt 0:00:06]} 6. N1c3 {[%emt 0:00:38]} a6 {[%emt 0:00:13]} 7. Na3 {[%emt 0:00:12]} Be6 {[%emt 0:00:31]} 8. Nc4 {[%emt 0:01:22]} Be7 {[%emt 0:01:49] 8...Rb8 gains popularity. B32: Sicilian: Löwenthal and Kalashnikov Variations.} 9. Ne3 {[%emt 0:02:12]} Nf6 {[%emt 0:03:25]} 10. g3 {[%emt 0:00:43]} h5 {[%emt 0:02:49][%cal Bh7h5,Bh5h4,Bh4h3][%mdl 32]} 11. Bg2 {[%emt 0:01:36]} h4 {[%emt 0:01:05]} 12. O-O {[%emt 0:01:29] [#]} h3 $146 {[%emt 0:17:39]} ({Predecessor:} 12... hxg3 13. hxg3 Nd4 14. Ne2 Nc6 15. Nd5 Rc8 16. Be3 Bxd5 17. exd5 Nb8 18. Rc1 Ng4 {0-1 Ostrovskiy,A (2295)-Bierkens,P (2137) Philadelphia op 2011 (7)}) 13. Bh1 {[%emt 0:02:30]} g6 {[%emt 0:06:39]} 14. Ncd5 {[%emt 0:01:29]} Rc8 {[%emt 0:03:15]} 15. c3 {[%emt 0:03:05]} O-O 16. f4 {[%emt 0:00:30]} exf4 17. gxf4 {[%emt 0:00:30]} Bxd5 18. exd5 {[%emt 0:00:30]} Nb8 19. Bf3 {[%emt 0:00:30]} Qb6 20. Kh1 {[%emt 0:00:30]} Rfe8 (20... Nbd7 $16 21. Bg4 Rce8) 21. Qd3 $2 {[%emt 0:00:30] [#]} (21. f5 $18 {Threatens to win with fxg6.} g5 22. Rg1) 21... Nbd7 $14 22. b4 {[%emt 0:00:30]} (22. Ng4 {is more complex.} Qc5 23. f5 Nxg4 24. fxg6 Nf2+ 25. Rxf2 Qxf2 26. gxf7+ Kg7 27. fxe8=N+ Rxe8 28. Qe3) 22... Bf8 23. Bd2 {[%emt 0:00:30]} Bg7 24. Rfe1 {[%emt 0:00:30]} Re7 25. Nc2 {[%emt 0:00:30]} Rce8 26. Rxe7 {[%emt 0:00:30]} Rxe7 {Weighted Error Value: White=0.19 (very precise) /Black=0.16 (very precise)} 1/2-1/2